bitfinex/quotes_ETHUSD_20241001
["timestamp","ask_amount","ask_price","bid_price","bid_amount"]
[1727813890438,4.02934,2481.8,2480.5,0.9287]
[1727813890666,37.08005591,2482.3,2480.7,0.9365]
[1727813890667,4.0291,2482.0,2480.7,0.9365]
[1727813890839,4.0291,2482.0,2480.4,3.0]
[1727813890840,4.0282,2482.5,2481.4,5.40005591]
[1727813891042,4.0278,2482.8,2481.5,4.01709121]
[1727813891228,4.02877,2482.2,2481.5,0.9365]
[1727813891435,4.431817,2482.1,2481.5,0.9365]
[1727813891718,4.0291,2482.0,2481.5,0.9365]
[1727813891946,4.02926,2481.9,2481.5,0.9365]
[1727813892245,4.0291,2482.0,2480.7,0.9986]
[1727813892246,4.02941,2481.8,2480.7,0.9986]
[1727813892449,4.432481,2481.7,2480.7,0.9986]
[1727813892657,4.432481,2481.7,2480.8,5.48067932]
[1727813892658,0.402941,2481.7,2480.8,5.48067932]
[1727813892954,4.431817,2482.1,2480.8,5.48067932]
[1727813892955,4.02904,2482.0,2480.9,3.9777]
[1727813893106,4.431817,2482.1,2480.9,4.05831053]
[1727813893107,0.402877,2482.1,2480.9,4.05831053]
[1727813893306,0.402877,2482.1,2481.0,0.9777]
[1727813893920,4.02901,2482.0,2481.0,0.9777]
[1727813894131,4.431867,2482.1,2481.0,0.9777]
[1727813894395,0.4431867,2482.0,2481.0,0.9777]
[1727813894713,4.02926,2481.9,2481.0,0.9777]
[1727813895127,4.03054,2481.1,2480.2,0.9589]
[1727813895370,1.5706,2481.7,2480.2,6.35895591]
[1727813895513,0.55,2481.5,2480.3,0.9589]
[1727813895716,0.457973,2481.4,2480.4,0.9951]
[1727813896416,4.58015,2481.3,2480.4,0.9951]
[1727813896614,4.0305,2481.1,2480.4,0.9951]
[1727813896852,4.03064,2481.0,2480.4,0.9951]
[1727813897916,0.61138125,2480.9,2480.4,0.9951]
[1727813898153,6.44818213,2480.8,2480.0,0.9924]
[1727813898360,6.50949634,2480.8,2480.0,0.9924]
[1727813898875,0.55,2480.7,2480.0,0.9924]
[1727813899094,4.5812,2480.7,2480.0,0.9924]
[1727813899376,0.06127787,2480.6,2480.0,0.9924]
[1727813899570,2.47852566,2480.6,2480.0,0.9924]
[1727813903591,0.55,2480.1,2478.9,0.9674]
[1727813903760,19.53,2480.0,2478.9,0.9674]
[1727813904266,19.59130696,2480.0,2478.9,1.44923631]
[1727813904467,19.59130696,2480.0,2479.1,0.9774]
[1727813904638,19.59130696,2480.0,2479.0,0.77205796]
[1727813904639,19.59130696,2480.0,2479.2,7.12836375]
[1727813904847,19.59130696,2480.0,2479.2,0.9774]
[1727813905700,4.03243,2479.9,2479.2,0.9774]
[1727813905907,4.03311,2479.5,2478.9,0.9574]
[1727813906201,4.03275,2479.7,2478.9,0.9574]
[1727813906202,0.61025821,2479.4,2478.9,0.9574]
[1727813906862,4.03351,2479.3,2478.9,0.9574]
[1727813907201,0.06025821,2479.4,2478.9,0.9574]
[1727813907398,0.06017157,2479.2,2478.9,0.9574]
[1727813907605,19.53,2479.6,2478.9,0.9574]
[1727813907761,0.06000417,2479.1,2478.9,0.9574]
[1727813907962,0.4431867,2479.5,2478.9,0.9574]
[1727813908182,0.05998461,2479.0,2478.9,0.9574]
[1727813908364,1.21601613,2479.9,2478.9,0.9574]
[1727813908703,1.21601613,2479.9,2479.0,0.9449]
[1727813908907,4.03226,2480.0,2479.0,0.9449]
[1727813909268,4.03253,2479.9,2479.0,0.9449]
[1727813909513,8.06462,2480.0,2479.0,0.9449]
[1727813909707,4.03226,2480.0,2479.0,0.9449]
[1727813910002,0.55,2479.9,2479.0,0.9449]
[1727813910165,0.458226,2479.8,2479.0,0.9449]
[1727813910730,0.458226,2479.8,2478.9,3.0]
[1727813910731,0.9914,2479.7,2478.9,0.9848]
[1727813911010,0.9914,2479.7,2478.8,0.1203795]
[1727813911011,0.55,2478.9,2478.8,0.1203795]
[1727813911395,4.03367,2479.2,2478.8,0.1203795]
[1727813911396,0.55,2479.1,2478.8,0.1203795]
[1727813911584,2.20894983,2479.1,2478.8,0.1203795]
[1727813911784,4.58404,2478.9,2478.8,0.1203795]
[1727813912109,1.65894983,2479.1,2478.8,0.1203795]
[1727813912309,19.53,2479.3,2478.8,0.1203795]
[1727813912602,19.53,2479.3,2478.9,0.9848]
[1727813912898,0.06010872,2479.2,2478.9,0.9848]
[1727813913212,5.482206,2479.8,2478.9,0.9848]
[1727813913213,4.03308,2479.5,2478.9,0.9848]
[1727813913372,0.06002542,2479.1,2478.9,0.9848]
[1727813913567,0.55,2479.3,2478.9,0.9848]
[1727813913765,0.06000587,2479.0,2478.9,0.9848]
[1727813914173,4.03308,2479.5,2478.9,0.9848]
[1727813914517,0.06000587,2479.0,2478.9,0.9848]
[1727813914820,0.06000656,2479.0,2478.9,0.9848]
[1727813914968,4.03348,2479.3,2478.8,0.1203795]
[1727813915169,0.06000587,2479.0,2478.8,0.1203795]
[1727813915402,4.03396,2479.0,2478.8,0.1203795]
[1727813915567,4.64402879,2478.9,2478.8,0.1203795]
[1727813915769,7.64402879,2478.9,2478.8,0.1203795]
[1727813917799,7.64402879,2478.9,2478.0,3.0]
[1727813917800,0.9926,2478.5,2478.0,3.0]
[1727813918077,7.58534,2478.1,2478.0,3.0]
[1727813918295,3.0,2478.1,2478.0,3.0]
[1727813918576,0.05980576,2478.1,2478.0,3.0]
[1727813919377,3.0,2478.6,2478.0,3.0]
[1727813919378,11.06932,2478.6,2478.0,7.03551]
[1727813919578,1.106932,2478.5,2478.1,4.03532]
[1727813919780,0.05736473,2478.4,2478.2,4.03512]
[1727813919976,19.53,2478.9,2478.3,4.03496]
[1727813920286,0.05754206,2478.8,2478.3,4.03489]
[1727813920490,0.05754206,2478.8,2478.7,4.03437]
[1727813920806,0.806681,2479.2,2479.0,4.03376]
[1727813920976,5.05255,2479.5,2478.8,4.03408]
[1727813920977,4.0334,2479.3,2478.8,8.0682]
[1727813921175,7.38,2479.6,2478.3,4.03498]
[1727813921176,0.9383,2479.4,2478.3,4.03498]
[1727813921399,19.53,2479.3,2478.4,4.03471]
[1727813921674,19.53,2479.3,2478.6,4.03445]
[1727813921675,4.03383,2479.1,2478.6,4.03445]
[1727813921878,0.403383,2479.0,2478.6,4.03444]
[1727813922115,8.06725,2479.2,2478.6,4.0344]
[1727813922313,4.03357,2479.2,2478.6,4.0344]
[1727813922618,4.03357,2479.2,2478.3,4.03488]
[1727813922818,6.390187,2479.1,2478.1,5.00113]
[1727813922973,6.390187,2479.1,2478.6,4.03451]
[1727813923173,6.390187,2479.1,2478.5,4.03469]
[1727813923375,2.356357,2479.1,2478.6,4.03438]
[1727813923605,23.56355,2479.3,2478.8,4.0342]
[1727813923832,4.03355,2479.3,2478.8,4.0342]
[1727813924117,4.03339,2479.4,2478.9,4.03404]
[1727813924461,7.38,2480.1,2478.7,0.9716]
[1727813924462,20.4963,2480.0,2478.7,0.9716]
[1727813924637,4.03276,2479.7,2479.2,4.03347]
[1727813924912,4.03276,2479.7,2478.8,0.71225638]
[1727813924913,4.03315,2479.5,2479.0,4.03387]
[1727813925120,4.03315,2479.5,2478.9,4.03402]
[1727813925121,4.03314,2479.5,2478.9,4.03402]
[1727813925325,0.403314,2479.4,2479.0,4.03385]
[1727813925622,4.436614,2479.4,2478.9,4.03404]
[1727813926123,0.403314,2479.4,2479.0,4.03386]
[1727813926425,4.03292,2479.6,2479.1,4.03363]
[1727813926946,4.03255,2479.9,2479.3,1.0097]
[1727813926947,23.56243,2479.9,2479.3,1.0097]
[1727813927164,4.03284,2479.7,2479.3,1.0097]
[1727813927283,0.403284,2479.6,2479.3,1.0097]
[1727813927489,4.436284,2479.6,2479.3,1.0097]
[1727813927723,4.03308,2479.5,2479.3,1.0097]
[1727813927929,0.0556837,2479.5,2479.4,4.03323]
[1727813928092,0.0556837,2479.5,2479.3,5.04301]
[1727813928288,4.77035,2480.0,2479.3,1.0097]
[1727813928490,0.05566415,2479.4,2479.3,5.04296]
[1727813928789,0.05567055,2479.4,2479.3,5.04296]
[1727813929096,4.0327,2479.8,2479.4,4.03316]
[1727813929631,7.38,2480.1,2479.3,5.04296]
[1727813929632,7.38,2480.1,2479.5,4.03305]
[1727813929829,4.03228,2480.0,2479.6,4.03288]
[1727813930038,14.606244,2480.1,2479.6,4.03288]
[1727813930342,4.03237,2480.0,2479.5,4.03295]
[1727813930519,4.03237,2480.0,2479.6,4.03285]
[1727813930704,7.38,2480.1,2479.3,1.0097]
[1727813930902,1.0006,2480.0,2478.9,0.9403]
[1727813931198,1.0006,2480.0,2478.3,4.03495]
[1727813931199,4.03438,2478.7,2478.3,4.03495]
[1727813931403,4.03438,2478.7,2478.2,4.03509]
[1727813931649,4.03438,2478.7,2478.1,4.97555]
[1727813931821,0.403438,2478.6,2478.1,0.9403]
[1727813932045,0.403438,2478.6,2478.2,4.03518]
[1727813932249,0.403438,2478.6,2478.1,0.9403]
[1727813932575,0.403438,2478.6,2478.1,4.97563]
[1727813932735,0.403438,2478.6,2478.1,0.9403]
[1727813932932,0.403438,2478.6,2478.2,4.03517]
[1727813933287,4.03382,2479.1,2478.1,0.9403]
[1727813933435,0.9991,2479.5,2478.2,4.03509]
[1727813933779,8.06861,2478.8,2478.2,4.03509]
[1727813933978,8.06861,2478.8,2478.2,8.07016]
[1727813933979,4.0343,2478.8,2478.2,8.07016]
[1727813934190,4.841126,2478.8,2478.2,4.03507]
[1727813934477,4.841116,2478.8,2478.2,4.03507]
[1727813934627,4.841116,2478.8,2478.3,4.03499]
[1727813934829,0.806826,2478.8,2478.4,4.03482]
[1727813935033,4.03399,2479.0,2478.4,4.03482]
[1727813935841,4.03405,2478.9,2478.4,4.03482]
[1727813936040,4.03407,2478.9,2478.1,0.9403]
[1727813936371,4.03407,2478.9,2478.4,4.03475]
[1727813936572,4.03407,2478.9,2478.4,8.06952]
[1727813936750,0.806807,2478.8,2478.4,4.03475]
[1727813936955,0.806807,2478.8,2478.2,4.03507]
[1727813936956,4.841057,2478.8,2478.2,4.03508]
[1727813937152,4.841057,2478.8,2478.3,4.03491]
[1727813937362,4.0347,2478.5,2478.1,0.9403]
[1727813937578,0.806807,2478.8,2478.1,0.9403]
[1727813937579,4.03454,2478.6,2478.1,0.9403]
[1727813937877,4.03454,2478.6,2478.2,4.03518]
[1727813938188,4.03454,2478.6,2478.0,7.03539]
[1727813938189,23.56438,2478.7,2478.0,3.0]
[1727813938373,23.56438,2478.7,2478.0,7.03543]
[1727813938374,4.03483,2478.5,2478.0,7.03543]
[1727813938538,4.03486,2478.4,2478.0,7.03543]
[1727813938878,4.03493,2478.4,2478.0,7.03543]
[1727813939236,4.03515,2478.3,2478.0,3.0]
[1727813939439,4.03534,2478.1,2478.0,3.0]
[1727813939671,24.922395,2478.1,2478.0,3.0]
[1727813940438,5.392395,2478.1,2478.0,3.0]
[1727813940680,4.96234,2477.5,2477.0,4.03701]
[1727813940852,1.0132,2477.8,2476.9,8.07437]
[1727813941181,4.03654,2477.4,2476.9,4.03718]
[1727813941477,4.0369,2477.2,2476.8,1.0121]
[1727813941679,4.03698,2477.1,2476.8,1.0121]
[1727813941841,4.440234,2477.4,2476.8,1.0121]
[1727813942186,1.0132,2477.1,2476.3,0.1203795]
[1727813942340,5.00351,2476.4,2476.3,0.1203795]
[1727813942539,5.503861,2476.4,2476.3,0.1203795]
[1727813942968,5.55708846,2476.4,2476.3,0.1203795]
[1727813944181,0.05322746,2476.4,2476.3,0.1203795]
[1727813944485,8.65223746,2476.4,2476.3,0.1203795]
[1727813945784,0.05322746,2476.4,2476.3,0.1203795]
[1727813946079,4.09133746,2476.4,2476.3,0.1203795]
[1727813947758,4.64133746,2476.4,2476.3,0.1203795]
[1727813947957,5.50926821,2476.4,2476.3,0.1203795]
[1727813948378,0.92115821,2476.4,2476.3,0.1203795]
[1727813948584,4.09133746,2476.4,2476.3,0.1203795]
[1727813948899,8.02173746,2476.4,2476.3,0.1203795]
[1727813949593,8.57173746,2476.4,2476.3,0.1203795]
[1727813952016,8.57173746,2476.4,2476.3,0.09612554]
[1727813952196,28.10173746,2476.4,2476.3,0.09612554]
[1727813952371,4.04002,2475.3,2474.8,4.04071]
[1727813952575,4.03973,2475.5,2474.8,4.04071]
[1727813952801,1.0006,2475.6,2474.8,4.04071]
[1727813952802,4.03992,2475.3,2474.8,4.04071]
[1727813953129,4.03913,2475.8,2474.2,0.25]
[1727813953130,4.04154,2474.3,2474.2,0.25]
[1727813953414,4.445694,2474.3,2474.2,0.25]
[1727813953710,4.445694,2474.3,2474.2,4.29171]
[1727813953711,0.04905507,2474.3,2474.2,4.29171]
[1727813953874,4.04147,2474.4,2474.2,0.25]
[1727813954074,0.04888779,2474.3,2474.2,0.25]
[1727813954274,0.04888779,2474.3,2473.8,0.1203795]
[1727813954275,0.55,2474.2,2473.8,0.1203795]
[1727813954575,0.55,2474.2,2471.4,1.0047835]
[1727813954576,4.04498,2472.2,2471.4,1.0047835]
[1727813954888,4.04498,2472.2,2471.4,0.1203795]
[1727813954889,4.04596,2471.6,2471.4,0.1203795]
[1727813955087,0.55,2471.9,2471.4,0.1203795]
[1727813955274,0.55,2471.9,2470.7,4.04741]
[1727813955275,0.04829287,2471.5,2470.7,4.04741]
[1727813955609,0.04829287,2471.5,2469.3,0.42055217]
[1727813955610,4.04715,2470.9,2469.9,4.04859]
[1727813955922,3.0,2471.2,2469.1,0.01399775]
[1727813955923,3.0,2470.6,2469.1,0.01399775]
[1727813956219,6.19851244,2470.8,2469.1,0.01399775]
[1727813956220,3.0,2470.3,2469.1,0.01399775]
[1727813956369,4.04832,2470.2,2469.1,0.01399775]
[1727813956578,4.04832,2470.2,2469.2,0.52]
[1727813956579,0.04749632,2470.2,2469.2,0.52]
[1727813956820,0.04749632,2470.2,2468.1,4.50552155]
[1727813956821,1.0116,2471.5,2468.9,0.39420863]
[1727813957137,1.0616,2471.5,2469.2,4.04979]
[1727813957273,0.04206755,2471.4,2470.3,6.15096375]
[1727813957474,0.05,2471.9,2470.8,4.04726]
[1727813957713,10.19532375,2472.6,2470.8,4.04726]
[1727813957714,0.04209235,2471.3,2471.2,10.19757375]
[1727813957918,0.05,2472.4,2471.5,4.04596]
[1727813958073,0.05,2472.3,2471.2,6.15096375]
[1727813958270,0.09045758,2472.3,2471.3,9.15096375]
[1727813958514,0.09045758,2472.3,2471.6,4.04595]
[1727813958515,0.04045758,2472.3,2471.6,4.04595]
[1727813958715,0.05,2472.3,2471.6,4.04595]
[1727813958870,4.04447,2472.6,2470.8,4.04714]
[1727813958871,0.04048785,2472.2,2471.7,13.19673375]
[1727813959076,0.05,2473.5,2472.2,3.0]
[1727813959278,0.05,2473.7,2472.6,3.0]
[1727813959504,0.04065939,2473.4,2473.1,4.04348]
[1727813959713,0.05,2473.9,2473.2,5.00776]
[1727813959877,0.05,2474.5,2473.5,4.0428]
[1727813960071,0.05,2474.5,2473.2,0.9645]
[1727813960072,0.09081232,2473.8,2473.2,0.9645]
[1727813960287,0.05,2473.8,2473.2,0.9645]
[1727813960524,4.04084,2474.8,2472.1,0.9839]
[1727813960525,0.05,2473.3,2472.1,0.9839]
[1727813960729,1.00764923,2473.7,2472.7,4.04414]
[1727813960730,0.05,2473.1,2472.7,4.04414]
[1727813961025,0.41953123,2474.3,2472.5,6.15096375]
[1727813961026,0.09059209,2473.2,2472.8,4.04394]
[1727813961229,0.04058726,2473.0,2472.9,4.04383]
[1727813961374,0.05,2473.9,2472.6,1.0114]
[1727813961701,0.04079281,2473.8,2473.4,4.04301]
[1727813961888,0.04079281,2473.8,2473.2,4.04332]
[1727813962094,0.05,2474.0,2473.2,4.04332]
[1727813962403,0.04083245,2473.7,2473.5,4.04281]
[1727813962576,0.05,2474.0,2473.6,4.04265]
[1727813962778,0.05,2474.4,2473.7,4.04245]
[1727813963012,0.04083735,2473.9,2473.6,0.9941]
[1727813963214,0.05,2474.1,2473.6,0.9941]
[1727813963410,0.04185263,2473.8,2473.6,0.9941]
[1727813963583,0.05,2474.1,2473.7,4.04252]
[1727813963807,0.05,2474.6,2473.7,4.0425]
[1727813963977,0.05,2474.3,2473.6,0.9941]
[1727813964173,4.04109,2474.6,2474.0,4.04203]
[1727813964174,0.05,2474.6,2474.0,4.04203]
[1727813964379,0.05,2474.4,2474.0,4.04197]
[1727813964624,0.05,2474.6,2474.1,4.04184]
[1727813964778,0.05,2474.6,2473.7,4.0425]
[1727813964975,0.05,2473.4,2472.8,4.04394]
[1727813965225,6.15096375,2474.3,2472.6,1.0153]
[1727813965226,0.05,2473.6,2472.6,1.0153]
[1727813965527,0.05,2473.6,2472.8,4.04395]
[1727813965826,0.05,2473.4,2472.6,1.0153]
[1727813965990,0.05,2472.9,2471.9,4.04532]
[1727813966329,0.05,2472.9,2471.8,4.04548]
[1727813966330,0.05,2472.4,2471.8,4.04548]
[1727813966617,0.05,2472.1,2470.9,4.04696]
[1727813966780,0.05,2471.9,2471.3,4.0463]
[1727813966977,0.05,2471.9,2471.5,4.04606]
[1727813967380,4.04482,2472.3,2471.0,1.0029]
[1727813967381,0.05,2471.7,2471.0,1.0029]
[1727813967575,1.0105,2472.3,2471.0,1.0029]
[1727813967576,0.05,2471.5,2471.1,4.04664]
[1727813967788,0.05,2471.5,2471.2,4.04656]
[1727813968180,0.05,2471.5,2471.2,4.0466]
[1727813968581,0.05,2471.5,2471.2,4.04649]
[1727813969114,4.04506,2472.2,2471.4,4.04628]
[1727813969115,0.05,2471.7,2471.4,4.04628]
[1727813969480,1.0105,2472.3,2471.0,4.04681]
[1727813969481,0.05,2471.5,2471.0,4.04681]
[1727813969728,0.05,2471.5,2471.2,4.0465]
[1727813970070,0.04216646,2471.4,2471.2,4.0465]
[1727813970236,0.05,2471.2,2470.7,4.04728]
[1727813970423,0.05,2471.0,2470.5,4.04769]
[1727813970625,0.05,2471.0,2470.1,4.04838]
[1727813970626,0.05,2470.6,2470.1,4.04838]
[1727813970880,0.04181741,2470.5,2470.4,4.04792]
[1727813971040,0.05,2471.0,2470.9,4.0471]
[1727813971375,0.05,2471.0,2470.9,4.04697]
[1727813971376,0.04215023,2471.0,2470.9,4.04697]
[1727813971725,0.05,2471.5,2471.4,4.04628]
[1727813971955,0.05,2471.7,2471.6,4.04596]
[1727813972174,0.5,2472.0,2471.6,4.04596]
[1727813972175,0.55,2472.0,2471.6,4.04596]
[1727813972374,0.55,2472.0,2471.9,4.04547]
[1727813972375,0.5,2472.0,2471.9,4.04547]
[1727813973226,0.5,2472.0,2471.8,4.04547]
[1727813973452,0.5,2472.0,2471.9,4.04547]
[1727813973892,0.5,2472.0,2471.8,4.04547]
[1727813974106,0.55,2472.0,2471.8,4.04547]
[1727813974404,0.5,2472.0,2471.9,4.04547]
[1727813974948,0.5,2472.0,2471.8,4.04547]
[1727813975488,0.5,2472.0,2471.6,4.04587]
[1727813975489,0.5,2472.0,2471.7,4.04566]
[1727813975793,0.05,2471.9,2471.8,4.04563]
[1727813976351,0.5,2472.0,2471.9,4.04547]
[1727813977289,0.5,2472.0,2471.8,4.04563]
[1727813977290,0.5,2472.0,2471.7,4.04572]
[1727813977494,0.5,2472.0,2471.6,4.04595]
[1727813977664,0.5,2472.0,2471.7,4.04575]
[1727813978055,0.05,2471.9,2471.5,4.04601]
[1727813978600,0.05,2471.7,2471.5,4.04601]
[1727813978772,0.05,2471.7,2470.5,6.61133904]
[1727813978773,4.09638,2471.4,2470.8,4.0472]
[1727813978956,0.05,2471.4,2470.9,4.04697]
[1727813979154,4.04649,2471.3,2470.7,4.04733]
[1727813979349,0.05,2471.4,2470.9,4.04706]
[1727813979704,4.604132,2471.4,2470.7,4.04733]
[1727813979858,4.604132,2471.4,2470.8,4.04725]
[1727813980060,0.557692,2471.4,2471.0,4.04691]
[1727813980401,0.557692,2471.4,2471.3,4.04645]
[1727813980402,0.05,2471.4,2471.3,4.04645]
[1727813980697,0.05,2471.6,2471.5,4.04612]
[1727813981118,0.5,2472.0,2471.4,4.04627]
[1727813981119,0.5,2472.0,2471.9,4.04547]
[1727813981525,0.54169741,2472.0,2471.9,4.04547]
[1727813981673,0.5,2472.0,2471.9,4.04547]
[1727813981872,0.5,2472.0,2471.9,6.49837538]
[1727813982078,0.09981262,2472.0,2471.9,9.49837538]
[1727813982314,0.05,2473.1,2472.7,4.04402]
[1727813982519,0.05,2473.1,2473.0,4.04367]
[1727813982736,0.05,2473.4,2473.1,4.0434]
[1727813983022,0.05,2473.4,2473.0,4.04367]
[1727813983023,0.05,2473.1,2473.0,4.04367]
[1727813983242,0.05,2473.7,2472.9,4.04378]
[1727813983522,0.05,2473.7,2473.4,4.04286]
[1727813983706,0.05,2473.7,2473.6,4.04269]
[1727813984037,0.05,2473.5,2473.1,4.0434]
[1727813984178,0.05,2473.2,2472.5,4.04441]
[1727813984378,0.9736,2473.7,2473.2,4.04323]
[1727813984379,0.05,2473.4,2473.2,4.04323]
[1727813984765,0.05,2473.4,2473.0,8.08722]
[1727813984891,0.05,2473.2,2472.8,8.0878]
[1727813985093,0.05,2472.9,2472.8,8.08781]
[1727813985315,0.9736,2473.7,2472.3,4.04477]
[1727813985316,0.05,2473.1,2473.0,4.04367]
[1727813986178,0.05,2473.3,2473.2,4.04334]
[1727813986424,0.05,2473.7,2473.6,4.04269]
[1727813986610,0.05,2473.7,2473.5,4.04283]
[1727813986821,0.05,2473.7,2472.6,6.15096375]
[1727813987135,0.9753,2474.1,2473.1,4.04338]
[1727813987136,0.05,2473.3,2473.1,4.04338]
[1727813987431,0.05,2473.3,2472.9,4.04374]
[1727813987581,0.05,2473.3,2472.2,7.17276375]
[1727813987792,0.05,2473.3,2473.2,4.04334]
[1727813988142,0.05,2473.3,2473.1,4.04348]
[1727813988143,0.05,2473.7,2473.4,4.04301]
[1727813988442,0.05,2473.3,2472.9,4.04372]
[1727813988857,0.459303,2473.3,2472.8,4.04389]
[1727813989244,0.459303,2473.3,2472.9,4.04373]
[1727813989451,0.9753,2474.1,2472.5,4.04437]
[1727813989452,0.05,2472.9,2472.5,4.04437]
[1727813989613,0.05,2472.9,2472.5,4.04435]
[1727813989813,0.05,2472.9,2472.6,4.04423]
[1727813990014,0.05,2472.9,2472.7,4.04414]
[1727813990215,0.05,2472.9,2472.7,4.04403]
[1727813990624,0.05,2472.6,2472.5,4.04433]
[1727813990827,0.9751,2473.3,2472.3,4.04466]
[1727813990828,0.05,2472.4,2472.3,4.04466]
[1727813992214,0.05,2472.7,2472.2,4.04495]
[1727813992419,0.05,2472.7,2472.6,4.04432]
[1727813993135,0.05,2472.9,2472.5,4.04447]
[1727813993326,0.05,2472.9,2472.8,4.04399]
[1727813994556,0.05,2472.9,2472.7,4.04413]
[1727813994557,0.05,2473.7,2473.0,4.04367]
[1727813994788,0.05,2473.9,2473.8,4.04236]
[1727813995066,0.05,2473.9,2473.7,4.04242]
[1727813995567,0.05,2473.9,2473.8,4.04236]
[1727813995922,0.05,2473.9,2473.7,4.04239]
[1727813996434,0.05,2473.7,2473.6,4.04269]
[1727813997372,0.9581,2474.7,2473.8,4.04236]
[1727813997373,0.05,2473.9,2473.8,4.04236]
[1727813997532,0.05,2474.1,2473.8,4.04236]
[1727813997827,0.05,2474.1,2473.9,4.04218]
[1727813998033,0.05,2474.1,2473.9,8.08429]
[1727813998248,0.05,2474.1,2473.9,8.08422]
[1727813998559,0.05,2474.1,2474.0,4.04203]
[1727813998887,0.05,2474.1,2473.3,6.15096375]
[1727813999028,0.05,2473.9,2473.3,6.15096375]
[1727813999231,0.05,2473.9,2473.8,4.04236]
[1727813999815,0.05,2473.9,2473.7,4.04251]
[1727813999979,0.05,2473.9,2473.6,8.08524]
[1727814000156,0.05,2473.9,2473.8,4.04236]
[1727814000360,0.05,2474.3,2473.8,4.04236]
[1727814000549,0.05,2474.3,2474.2,4.04171]
[1727814000975,0.05,2473.9,2473.6,4.04262]
[1727814001201,0.05,2473.7,2473.6,4.04262]
[1727814001501,0.05,2474.1,2474.0,4.04203]
[1727814001640,0.05,2474.3,2474.2,4.04171]
[1727814001951,0.05,2474.3,2474.1,4.04185]
[1727814002298,0.05,2474.3,2473.7,6.15096375]
[1727814002299,0.05,2473.9,2473.8,4.04226]
[1727814002643,0.05,2474.2,2474.1,4.04187]
[1727814002888,0.0872899,2474.2,2474.1,4.04187]
[1727814003039,0.0372899,2474.2,2474.1,4.04187]
[1727814003245,0.05,2474.2,2474.1,4.04187]
[1727814003480,0.08769014,2474.2,2474.1,4.04187]
[1727814003743,0.08769014,2474.2,2473.4,4.04288]
[1727814003744,0.05,2473.5,2473.4,4.04288]
[1727814004044,0.9541,2473.9,2472.9,4.04376]
[1727814004045,0.05,2473.0,2472.9,4.04376]
[1727814004250,0.08734204,2473.0,2472.9,4.04376]
[1727814004451,0.08734204,2473.0,2472.8,4.04399]
[1727814004452,0.05,2473.0,2472.8,4.04399]
[1727814004688,0.9541,2473.9,2472.3,0.947]
[1727814004689,0.05,2472.8,2472.4,4.04459]
[1727814004867,0.9943,2473.1,2472.4,4.04459]
[1727814004868,0.05,2472.6,2472.4,4.04454]
[1727814005078,0.05,2472.6,2472.5,4.04448]
[1727814005239,0.9943,2473.1,2472.0,5.01965]
[1727814005240,0.05,2472.4,2472.0,5.01956]
[1727814005443,0.0371101,2472.3,2472.2,4.04486]
[1727814005678,0.0371101,2472.3,2472.2,4.04498]
[1727814005900,0.0871101,2472.3,2472.2,4.04498]
[1727814006189,0.05,2472.3,2472.0,4.0452]
[1727814006484,0.05,2472.3,2471.9,4.04541]
[1727814006485,0.05,2472.1,2471.7,4.04573]
[1727814006652,0.05,2472.1,2471.5,4.04606]
[1727814006862,0.05,2471.9,2471.5,8.09198]
[1727814007040,0.05,2471.9,2471.5,4.04599]
[1727814007392,0.05,2471.7,2471.5,4.04599]
[1727814007749,0.05,2471.7,2471.6,4.04596]
[1727814008117,0.05,2471.9,2471.8,4.04563]
[1727814008605,0.05,2471.9,2471.7,4.04578]
[1727814008758,0.05,2471.9,2471.6,4.04584]
[1727814009099,0.05,2471.9,2471.5,4.04597]
[1727814009269,0.05,2471.7,2471.5,4.04597]
[1727814009473,0.05,2471.7,2471.6,4.04596]
[1727814009680,0.05,2472.2,2472.0,4.04519]
[1727814009993,0.05,2471.6,2470.8,1.0569]
[1727814010155,0.05,2471.6,2470.4,0.82172202]
[1727814010156,0.05,2471.0,2470.4,1.0569]
[1727814010356,0.05,2471.0,2470.5,0.08094705]
[1727814010591,0.05,2471.0,2470.9,4.0471]
[1727814010804,0.05,2471.0,2470.9,4.12804152]
[1727814011146,0.05,2471.8,2471.5,4.04612]
[1727814011259,0.05,2472.0,2471.8,4.04561]
[1727814011603,0.05,2472.0,2471.7,4.04579]
[1727814011754,0.05,2472.0,2471.7,4.0457]
[1727814011954,0.05,2472.0,2471.8,4.04562]
[1727814012154,0.05,2472.0,2471.9,4.04547]
[1727814012598,0.05,2472.2,2471.3,7.14216375]
[1727814012796,0.79918555,2473.4,2471.3,7.14216375]
[1727814012797,0.05,2472.5,2472.0,4.04515]
[1727814012960,0.05,2472.5,2471.6,4.04586]
[1727814012961,0.05,2472.3,2471.8,4.04552]
[1727814013154,0.05,2472.3,2471.9,4.04537]
[1727814013360,0.05,2472.1,2471.9,4.04537]
[1727814013586,0.05,2471.9,2471.6,4.04594]
[1727814013802,0.05,2471.9,2471.8,4.04563]
[1727814013969,0.05,2471.9,2471.6,0.404594]
[1727814013970,0.05,2472.4,2472.2,4.04497]
[1727814014609,0.05,2472.8,2471.8,3.06065715]
[1727814014815,0.05,2472.6,2472.4,4.04449]
[1727814014997,0.05,2472.4,2472.2,4.04488]
[1727814015319,0.05,2472.4,2472.3,4.04476]